{"text_format":"1","workbook":"xlsx","n_sheets":11,"sheets":["Contents","Proposal Summary","Familial Disclosure Affidavit","Iran Economic Sanctions Act","Criminal Background Checks","School Safety Affidavit","Comply Exception","Technical Specifications","Device Inventory","Vendor Questionnaire","Cost"],"not_rendered":{"charts":0,"images":0,"macros":1,"external_links":0,"defined_names":8,"comments":0,"pivot_tables":0},"unopened":[],"bounds":{"document_bytes":16777216,"sheet_cells":100000,"rows_first":2000,"rows_last":500,"rows_between":2000,"halvings":0,"cell_chars":16384,"cell_head_chars":4096},"cells_cut":0,"cells_raw":0,"read":"whole","date_system":"1900"}

{"sheet":"Contents","index":0,"n_rows":28,"n_cols":1,"rows_kept":28,"cut":false,"hidden":false,"merged":[]}
["APPENDIX A"]
[]
[]
["Electronic Copy Must be submitted in Microsoft Excel format\nSee section 1.7 of the RFP For Sumission Instructions"]
[]
["Instructions: The RFP forms section contains the following documents that MUST to submitted with your RFP response."]
[]
["REQUIRED FORMS:"]
["The following forms MUST be submitted as a part of your RFP Response"]
[]
["CONTENTS:"]
["Proposal Summary"]
["Familial Disclosure Affidavit"]
["Iran Economic Sanctions Act"]
["Criminal Background Checks"]
["School Safety Affidavit"]
["Comply Exception"]
["Technical Specifications"]
["Device Inventory"]
["Vendor Questionnaire"]
["Cost"]
[]
[]
[]
[]
[]
[]
["Your bid response must include a completed copy of each form above, in the order listed above. An electronic copy of these forms in a Microsoft Excel (.xls) format must also be submitted. See RFP for Proposal Submission Instructions. Failure to submit each of the above forms may be  cause for rejection of the bid response."]

{"sheet":"Proposal Summary","index":1,"n_rows":27,"n_cols":5,"rows_kept":27,"cut":false,"hidden":false,"merged":[[14,4,14,5],[15,0,15,1],[15,2,15,3],[15,4,15,5],[19,0,19,5],[16,0,16,1],[16,2,16,3],[16,4,16,5],[17,0,17,1],[17,2,17,3],[17,4,17,5],[18,0,18,3],[2,1,2,5],[3,1,3,5],[4,1,4,5],[1,0,1,5],[5,1,5,5],[6,1,6,5],[23,0,23,5],[26,0,26,2],[22,0,22,5],[21,0,21,5],[24,0,24,2],[25,0,25,2],[11,0,11,5],[12,0,12,1],[12,2,12,3],[12,4,12,5],[13,0,13,1],[13,2,13,3],[13,4,13,5],[14,0,14,1],[14,2,14,3]]}
[{"$f":"MID(CELL(\"filename\",A1),FIND(\"]\",CELL(\"filename\",A1))+1,256)","v":"Proposal Summary"}]
[{"$f":"MID(CELL(\"filename\",A1),FIND(\"]\",CELL(\"filename\",A1))+1,256)","v":"Proposal Summary"}]
["Company Name"]
["Proposal Preparer"]
["Phone Number"]
["Fax Number"]
["E-mail Address"]
[]
[]
["Base Bid:"]
[]
["Acknowledgment of Addenda Received"]
["Addendum Number",null,"Dated",null,"Initials"]
[]
[]
[]
[]
[]
["I confirm that the scanned bid is identical to the hardcopy bid submitted as requested in the RFP. Deadline for Proposals, and acknowledge by my signature.",null,null,null,"Signature:"]
["Other Acknowledgments"]
[]
["On this ______________day of ________________, 20____, the undersigned declares that he/she has carefully examined the  Instructions/Conditions for this Bid and will honor all purchase orders, prices and specifications set forth in the Request for Proposal."]
[]
["The undersigned understands that the Farmington Public Schools reserves the right to accept or reject in whole or in part any and all Proposals, to waive informalities and irregularities therein, to award the Contract to other than the lowest bidder, and to award the Contract to one (1) or more Vendors in the Farmington Public Schools' sole and absolute discretion. If award is made to our firm based upon our Proposal, we agree to enter into the attached form of Contract with the Farmington Public Schools to furnish the proposed solution and/or services in strict accordance with the Request For Proposals, the Contract and our Proposal.\n\nMy signature certifies that the Proposal as submitted complies with all terms and conditions as set forth in the Request For Proposals, unless specifically enumerated as an exception as part of our Proposal. I hereby certify that I am authorized to sign as a Representative for the firm.\n\nVENDOR HEREBY SUBMITS THIS PROPOSAL PRICING FORM IN ACCORDANCE WITH THE TERMS AND CONDITIONS OF THE RFP."]
["Name of Company"]
["Authorized Signature"]
["Printed / Typed Name of Authorized Signer"]

{"sheet":"Familial Disclosure Affidavit","index":2,"n_rows":25,"n_cols":4,"rows_kept":25,"cut":false,"hidden":false,"merged":[[0,0,0,4],[14,0,14,4],[13,3,13,4],[12,3,12,4],[8,0,8,4],[9,1,9,4],[23,3,23,4],[24,3,24,4],[22,3,22,4],[20,3,20,4],[1,0,1,4],[2,0,2,4],[4,1,4,2],[5,1,5,2],[6,1,6,2],[19,3,19,4],[15,0,18,4]]}
[{"$f":"MID(CELL(\"filename\",A1),FIND(\"]\",CELL(\"filename\",A1))+1,256)","v":"Familial Disclosure Affidavit"}]
[]
["THE AFFIDAVIT SET FORTH BELOW MUST BE EXECUTED ON BEHALF OF\nTHE VENDOR AND FURNISHED WITH EVERY BID\n"]
[]
["State of"]
["County of"]
["Tax ID Number"]
[]
["The undersigned, the owner or authorized officer of ___________________________ (the \"Vendor\"), pursuant to the familial disclosure requirement provided in the Farmington Public Schools Request for Proposal for Structured Cabling hereby represents and warrants that, except as provided below, no familial relationships exist between the owner or any employee of the Vendor and any member of the Board of Education of the School District or the Superintendent of the School District. A list of the School District's Board of Education members and its Superintendent may be found at www.farmington.k12.mi.us."]
["List any Familial Relationships\n(If \"no exceptions\", please state)"]
[]
[null,null,"Vendor:"]
[null,null,"By:"]
[null,null,"Its: "]
[]
["\nSWORN TO and subscribed before me, a Notary Public, in and for the above named State and County this \n\n         day of ________,  ___________."]
[]
[]
[]
[]
[null,null,null,"(Notary Public)"]
[]
[null,null,null,"_________________ County, _________"]
[null,null,null,"My Commission Expires:  _____________"]
[null,null,null,"Acting in the County of:"]

{"sheet":"Iran Economic Sanctions Act","index":3,"n_rows":21,"n_cols":8,"rows_kept":21,"cut":false,"hidden":false,"merged":[[0,0,0,8],[2,0,2,8],[3,0,3,8],[18,5,18,6],[4,6,4,8],[1,0,1,8],[6,6,6,8],[15,0,15,8],[17,7,17,8]]}
[{"$f":"MID(CELL(\"filename\",A1),FIND(\"]\",CELL(\"filename\",A1))+1,256)","v":"Iran Economic Sanctions Act"}]
["The Board of Education will not accept this bid without this completed, signed and notarized form"]
["AFFIDAVIT OF COMPLIANCE\nMichigan Public Act No. 517 of 2012"]
["The undersigned, the owner or authorized officer of the below-named contractor (the “Contractor”), pursuant to the compliance certification requirement provided in the Farmington Public Schools (the “School District”) Request For Proposals for a Structured Cabling RFP (the “RFP”), hereby certifies, represents and warrants that the Contractor (including its officers, directors and employees) is not an “Iran linked business” within the meaning of the Iran Economic Sanctions Act, Michigan Public Act No. 517 of 2012 (the “Act”), and that in the event Contractor is awarded a contract as a result of the aforementioned RFP, the Contractor will not become an “Iran linked business” at any time during the course of performing any services under the contract.\n\nThe Contractor further acknowledges that any person who is found to have submitted a false certification is responsible for a civil penalty of not more than $250,000.00 or 2 times the amount of the contract or proposed contract for which the false certification was made, whichever is greater, the cost of the School District’s investigation, and reasonable attorney fees, in addition to the fine. Moreover, any person who submitted a false certification shall be ineligible to bid on a request for proposal for three (3) years from the date it is determined that the person has submitted the false certification."]
[null,null,null,null,null,null,"CONTRACTOR:"]
[]
[null,null,null,null,null,null,"Name of Contractor"]
[null,null,null,null,null,"By:"]
[null,null,null,null,null,"Its:"]
[null,null,null,null,null,"Date:"]
[]
["STATE OF ",null,null,")"]
[null,null,null,")","ss."]
["COUNTY OF",null,null,")"]
[]
["This instrument was acknowledged before me on the ____ day of __________, 2025, by ________________. "]
[]
[null,null,null,null,null,"                    ",null,", Notary Public"]
[null,null,null,null,null,null,null,"County,"]
[null,null,null,null,null,"My Commission Expires:"]
[null,null,null,null,null,"Acting in the County of:"]

{"sheet":"Criminal Background Checks","index":4,"n_rows":18,"n_cols":10,"rows_kept":18,"cut":false,"hidden":false,"merged":[[13,7,13,10],[2,0,2,10],[5,7,5,10],[6,7,6,10],[7,7,7,10],[11,3,11,4],[0,0,0,10],[8,0,8,5],[9,0,9,5],[1,0,1,10],[12,7,12,10]]}
[{"$f":"MID(CELL(\"filename\",A1),FIND(\"]\",CELL(\"filename\",A1))+1,256)","v":"Criminal Background Checks"}]
["AFFIDAVIT OF COMPLIANCE"]
["\nThe undersigned, the owner or authorized officer of the below-named contractor (the “Contractor”), pursuant to the criminal background compliance certification requirements of Farmington Public Schools (the “School District”) hereby represents and warrants that the Contractor has performed and/or will perform sufficient criminal background checks, including at a minimum, an Internet Criminal History Tool (“ICHAT”) check, for all of its owners, employees, agents, representatives, contractors and/or other personnel who will be on any School District premises to carry out the services contemplated by the Contract Documents. The Contractor further hereby certifies that no owner, employee, agent, representative, contractor and/or other personnel of the Contractor will be on any School District premises if they are a registered criminal sexual offender under the Sex Offenders Registration Act, Public Act 295 of 1994, or have been convicted of “Listed Offense” as defined under Section 722 of the Sex Offenders Registration Act, MCL 28.722.\n\nThe Contractor further acknowledges that if it is found to have submitted a false certification or otherwise fails to comply with the requirements of this certification, the School District may immediately terminate the Contract."]
[null,null,null,null,null,null,"NAME OF CONTRACTOR:"]
[]
[null,null,null,null,null,null,"By: "]
[null,null,null,null,null,null,"Its: "]
[null,null,null,null,null,null,"Date: "]
["STATE OF ______________)\n                                                                 )ss."]
["COUNTY OF ____________)"]
["This instrument was acknowledged before me on the ___ day of ______, 20___, by ___________."]
[]
[]
[null,null,null,null,null,null,null,", Notary Public"]
[]
[null,null,null,null,null,null,null,null,null,"County,"]
[null,null,null,null,null,null,null,"My Commission Expires:"]
[null,null,null,null,null,null,null,"Acting in the County of:"]

{"sheet":"School Safety Affidavit","index":5,"n_rows":20,"n_cols":4,"rows_kept":20,"cut":false,"hidden":false,"merged":[[7,1,7,2],[11,0,11,4],[0,0,0,4],[1,0,1,4],[2,0,2,4],[4,0,4,4],[5,0,5,4],[15,0,15,4],[17,3,18,4],[19,3,19,4],[8,1,8,2],[9,1,9,2],[12,0,13,0],[12,1,13,4],[14,0,14,4]]}
[{"$f":"MID(CELL(\"filename\",A1),FIND(\"]\",CELL(\"filename\",A1))+1,256)","v":"School Safety Affidavit"}]
[]
["THE AFFIDAVIT SET FORTH BELOW MUST BE EXECUTED ON BEHALF OF\nTHE VENDOR AND FURNISHED WITH EVERY BID\n"]
[]
["The Board of Education will not accept this bid without this completed, signed and notarized form"]
["School Safety Legislation"]
[]
["State of"]
["County of"]
["Tax ID Number"]
[]
["__________________ , the authorized officer of ______________ (the \"Contractor\") being duly sworn, certifies, warrants and represents that any and all persons who will work directly or indirectly for the Contractor, including but not limited to employees, agents, vendors, subcontractors or consultants, and who will work at or on any School district property, shall, at all times, be in compliance with MCL 380.1230, 380.1230a, 380.1230c, 3801230d, and 380.1230g and have not been convicted of any \"listed offenses\". In this regard, Contractor agrees, without limitation, to report within 3 business days to the School District when any such person is charged with a crime listed in Section 1535a(1) of the Revised School Code or a substantially similar law, and to immediately report to Farmington Public Schools if that person is subsequently convicted, pleads guilty or pleads no contest to that crime."]
["State Exceptions:\n(If \"no exceptions\", please state)"]
[]
[]
["_________________________________\n(Affiant)\nSWORN TO and subscribed before me, a Notary Public, in and for the above named State and County this \n\n_______ day of ________,  _________.\n\n"]
[]
[]
[]
[null,null,null,"(Notary Public)"]

{"sheet":"Comply Exception","index":6,"n_rows":26,"n_cols":3,"rows_kept":26,"cut":false,"hidden":false,"merged":[[8,2,8,3],[2,0,2,3],[3,0,3,3],[15,2,15,3],[16,2,16,3],[0,0,0,3],[4,2,4,3],[5,2,5,3],[6,2,6,3],[7,2,7,3],[23,1,23,2],[24,1,24,2],[25,1,25,2],[9,2,9,3],[10,2,10,3],[11,2,11,3],[12,2,12,3],[13,2,13,3],[14,2,14,3],[21,0,21,3],[20,1,20,3],[17,2,17,3],[18,2,18,3],[19,2,19,3]]}
[{"$f":"MID(CELL(\"filename\",A1),FIND(\"]\",CELL(\"filename\",A1))+1,256)","v":"Comply Exception"}]
[]
["The Vendor must clearly indicate whether you either comply or take an exception to any of the sections in this RFP, including all Appendices. A completed form MUST be submitted with every response."]
["Please indicate any sections below that you do not comply with and please state your exception and a reason."]
["Section #","RFP Item","Exception / Reason"]
[]
[]
[]
[]
[]
[]
[]
[]
[]
[]
[]
[]
[]
[]
[]
[]
["By signing below, you indicate the you fully comply with the RFP, including all parts (RFP, Attachments, Contract), except as noted above. We agree that if award is made to our firm based upon our Proposal, we agree to enter into the Contract included in the RFP and furnish the Services in strict accordance with this Request for Proposal, the Contract and our Proposal."]
[]
["Signature:"]
["Printed Name:"]
["Title:"]

{"sheet":"Technical Specifications","index":7,"n_rows":120,"n_cols":3,"rows_kept":120,"cut":false,"hidden":false,"merged":[[40,0,40,2],[111,0,111,2],[75,0,75,2],[84,0,84,2],[93,0,93,2],[102,0,102,2],[53,0,53,2],[66,0,66,2],[28,0,28,2],[0,0,0,2],[1,0,1,2],[3,0,3,2],[4,0,4,2],[16,0,16,2]]}
["Equipment Specifications"]
["This spreadsheet is to be used to provide detail on the equipment necessary to fulfill the requirements as requested in the RFP. Indicate in the right column what brand and model you are proposing, and whether you comply, take exception or exceed the required spec. If exceed or exception, please list what this exception is."]
["Item","Requirement","Vendor Response\nModel/Comply/Exceed/Exception"]
["Section 2 - Cabling"]
["Patch panels"]
["Manufacturer","Vendor to indicate manufacturer"]
["Model name","Vendor to indicate model name and number"]
["Port count per panel",48]
["Performance/Cable category","Category 6"]
["Port configuration","8P8C"]
["Port termination","Keystone"]
["Mounting application","Rack-mounted (19\")"]
["Wire management (front)","One horizontal per patch panel"]
["Wire management (rear)","One horizontal per patch panel"]
["Wiring configuration","T568B"]
["Standards & compliance","ANSI/TIA-568.2\nUL-listed"]
["Horizontal cabling"]
["Manufacturer","Vendor to indicate manufacturer"]
["Model name","Vendor to indicate model name and number"]
["Performance/Cable category","Category 6"]
["Jacket insulation","CMP (plenum) rated"]
["Pair count","4-Pair"]
["Wiring configuration","T568B"]
["Gauge","24 AWG solid copper conductors"]
["Connectors","IDC, 110-type jack, UL-rated"]
["Bundling","No more than 24 cords per bundle"]
["Color","General: Blue\nWireless: Blue\nVS: Purple\nAV: Orange\nHVAC: Red\nCopiers/printers: Green\nOther: White"]
["Certifications","ANSI/TIA-568.0\nANSI/TIA-568.2\nNEC Certified\nCSA Certified\nUL LP-rated\nUL Standard 444\nIEEE 802.3af/at/bt"]
["Device patch cords"]
["Manufacturer","Vendor to indicate manufacturer"]
["Model name","Vendor to indicate model name and number"]
["Performance/Cable category","Category 6"]
["Jacket insulation","CMP (plenum) rated"]
["Pair count","4-Pair"]
["Wiring configuration","T568B"]
["Gauge","24 AWG solid copper conductors"]
["Connectors","IDC, 110-type jack, UL-rated"]
["Min. cable length","6 ft"]
["Color","General: Blue\nWireless: Blue\nVS: Purple\nAV: Orange\nHVAC: Red\nCopiers/printers: Green\nOther: White"]
["Certifications","ANSI/TIA-568.0\nANSI/TIA-568.2\nNEC Certified\nCSA Certified\nUL LP-rated\nUL Standard 444\nIEEE 802.3af/at/bt"]
["Patch panel-to-equipment patch cords"]
["Manufacturer","Vendor to indicate manufacturer"]
["Model name","Vendor to indicate model name and number"]
["Performance/Cable category","Category 6"]
["Jacket Insulation","CMP (plenum) rated"]
["Pair Count","4-Pair"]
["Wiring Configuration","T568B"]
["Gauge","28-AWG solid copper conductors"]
["Connectors","8P8C (RJ45)"]
["Min. Cable Length","1 ft"]
["Bundling","No more than 12 cords per bundle with separation of 1.5\" from outer edge to outer edge of other bundles."]
["Color","General: Blue\nWireless: Blue\nVS: Purple\nAV: Orange\nHVAC: Red\nCopiers/printers: Green\nOther: White"]
["Certifications","ANSI/TIA-568.0\nANSI/TIA-568.2\nNEC Certified\nCSA Certified\nUL LP-rated\nUL Standard 444\nIEEE 802.3af/at/bt"]
["Backbone cabling"]
["Manufacturer","Vendor to indicate manufacturer"]
["Model name","Vendor to indicate model name and number"]
["Fiber type","Single-mode inside plant - OS1a\n(TIA-492CAAC B-652.D, IEC 60793-2-50)"]
["Connectors","For 1-2 fibers: LC (ANSI/TIA-604-10)\nFor 3+ fibers: MPO (ANSI/TIA-604-5)"]
["Buffer tube design","Tight buffer tube"]
["Core diameter","8.2 µm"]
["Cladding diameter","125 + 0.7 µm"]
["Minimum bend radius","25 mm when not subject to tensile load."]
["Strand count",12]
["Jacket","Armored OFNP (Plenum & dielectric)"]
["Maximum attenuation","@ 1310nm: 0.5 dB/km\n@ 1383nm: 0.5 dB/km\n@ 1550nm: 0.5 dB/km"]
["Standards & compliance","ANSI/TIA-492CAAC B652.D\nANSI/TIA-568.3\nANSI/TIA-604\nAll corresponding TIA FOCIS\nICEA S-83-596\nIEC 60793-2-50\nISO/IEC 11801"]
["Fiber enclosure"]
["Manufacturer","Vendor to indicate manufacturer"]
["Model name","Vendor to indicate model name and number"]
["Rack units","Sized according to termination requirements "]
["Bulkhead inserts/adapters","LC or MPO adapters, compatible with fiber type and connector"]
["Covers","Front and rear with hinge "]
["Cable management","Bend radius control and cable management for fiber patch cords, cable routing kit "]
["Tray","Front and rear sliding tray "]
["Standards & compliance","ANSI/TIA-548.3\nAll corresponding TIA FOCIS\nANSI/TIA-606"]
["Floor-mounted cabinet"]
["Manufacturer","Vendor to indicate manufacturer"]
["Model name","Vendor to indicate model name and number"]
["Rack units",45]
["Rack mount spacing","19\""]
["Depth","42\" - Usable depth of 40\""]
["Rack material","Steel"]
["Door type","Rear and front perforated steel, key-locking"]
["Additional features","Ventilated side panels, top-mounted gland plate, rear vertical cable managers, levelers"]
["Two-post open rack"]
["Manufacturer","Vendor to indicate manufacturer"]
["Model name","Vendor to indicate model name and number"]
["Rack units",45]
["Rack mount spacing","19\""]
["Depth","42\" - Usable depth of 40\""]
["Rack material","Extruded aluminum or steel"]
["Door type","N/A"]
["Additional features","Rear vertical cable management"]
["Floor-mounted wall cabinet"]
["Manufacturer","Vendor to indicate manufacturer"]
["Model name","Vendor to indicate model name and number"]
["Rack units",40]
["Rack mount spacing","19\""]
["Depth","42\" - Usable depth of 40\""]
["Rack material","Steel"]
["Door type","Front perforated steel, key-locking"]
["Additional features","Ventilated side panels, top-mounted gland plate, rear vertical cable managers, levelers, reversible hinge, UPS bracket/mount"]
["Wall-mounted half cabinet"]
["Manufacturer","Vendor to indicate manufacturer"]
["Model name","Vendor to indicate model name and number"]
["Rack units",26]
["Rack mount spacing","19\""]
["Depth","42\" - Usable depth of 40\""]
["Rack material","Steel"]
["Door type","Front perforated steel, key-locking"]
["Additional features","Ventilated side panels, top-mounted gland plate, rear vertical cable managers, levelers, reversible hinge, UPS bracket/mount"]
["Power distribution unit "]
["Manufacturer","Vendor to indicate manufacturer"]
["Model name","Vendor to indicate model name and number"]
["Form-factor","Rack-mounted (19\")"]
["Input voltage","120V"]
["Input plug type","NEMA 5-20P; NEMA L5-20P (with adapter to 5-20P) "]
["# of outlets",12]
["Outlet types","NEMA 5-15/20R "]
["Additional features","Remote management, digital ammeter"]

{"sheet":"Device Inventory","index":8,"n_rows":52,"n_cols":11,"rows_kept":52,"cut":false,"hidden":false,"merged":[[0,0,0,10]]}
["Device Inventory"]
[null,"East MS","Power MS","Warner MS","Farmington HS","North Farmington HS","Additional drops to be used across all buildings","Total","Comments","Confirm total count on prints matches total in spreadsheet.  If not, indicated variances","Confirm all Drops included in bid (Y/N)"]
["Horizontal cabling"]
["Cabling - new",{"$f":"SUM(B5,B6, B7*2, B8*3, B9*4, B10*5, B11*8, B12*10)","v":118},{"$f":"SUM(C5,C6, C7*2, C8*3, C9*4, C10*5, C11*8, C12*10)","v":90},74,{"$f":"SUM(E5,E6, E7*2, E8*3, E9*4, E10*5, E11*8, E12*10)","v":221},{"$f":"SUM(F5,F6, F7*2, F8*3, F9*4, F10*5, F11*8, F12*10)","v":222},50,{"$f":"SUM(B4:G4)","v":775}]
["1 drop/location (1D)",93,60,60,106,104,null,{"$f":"SUM(B5:G5)","v":423}]
["Wireless (1D)",0,0,0,0,2,null,{"$f":"SUM(B6:G6)","v":2}]
["2 drops/location (2D)",11,8,7,26,30,null,82]
["3 drops/location (3D)",1,2,0,5,3,null,11]
["4 drops/location (4D)",0,2,0,5,8,null,15]
["5 drops/location (5D)",0,0,0,2,3,null,5]
["8 drops/location (8D)",0,0,0,1,0,null,1]
["10 drops/location (10D)",0,0,0,1,0,null,1]
["Backbone fiber runs",3,2,1,4,5,null,15]
["Raceway - new 2000",4,2,1,4,9,null,20]
["Raceway - new 4000",0,2,0,2,0,null,4]
["Cabling demolition1"]
["Currently terminated/in-use drops2",594,422,236,864,848,null,{"$f":"SUM(B17:G17)","v":2964}]
["Multimode fiber",4,3,2,5,7,null,{"$f":"SUM(B18:G18)","v":21}]
["Network closets"]
["# of network closets to be renovated",3,3,1,4,5,null,{"$f":"SUM(B20:G20)","v":16}]
["# of network closets to be demoed3",0,0,0,1,0,null,1]
["# of network closets to be relocated",1,0,1,0,1,null,3]
["# of network closets to be added",0,0,0,0,1,null,1]
["Floor-mounted cabinet",5,4,3,6,7,null,25]
["Wall-mounted  half cabinet",0,0,0,0,1,null,1]
["Relocated IDLs & associated cabling4, 5"]
["Cables to demo & run new to new closet:"]
["Wireless",11,null,16,null,11,null,{"$f":"SUM(B28:G28)","v":38}]
["Video surveillance",7,null,10,null,3,null,{"$f":"SUM(B29:G29)","v":20}]
["AV",10,null,8,null,10,null,{"$f":"SUM(B30:G30)","v":28}]
["Cabling to pull back from existing closet & reterminate in new closet"]
["Wireless",13,null,4,null,10,null,{"$f":"SUM(B32:G32)","v":27}]
["Video surveillance",7,null,5,null,4,null,{"$f":"SUM(B33:G33)","v":16}]
["AV",13,null,1,null,9,null,{"$f":"SUM(B34:G34)","v":23}]
["Wall-mounted  Half Cabinet",null,null,null,null,null,null,{"$f":"SUM(B35:G35)","v":0}]
["Add Alternate 6A - Total quantity"]
["Cabling - New",{"$f":"B38+B39","v":118},{"$f":"C38+C39","v":107},102,242,296,null,{"$f":"SUM(B37:G37)","v":865}]
["Normal bid count",{"$f":"B4","v":118},{"$f":"C4","v":90},{"$f":"D4","v":74},{"$f":"E4","v":221},{"$f":"F4","v":222},null,725]
["Additional cables",0,17,28,21,74,null,140]
["Wireless",78,79,76,155,143,null,531]
["Video surveillance",44,50,39,64,67,null,264]
["AV",{"$f":"SUM(B43:B45)","v":54},{"$f":"SUM(C43:C45)","v":44},39,96,99,null,332]
["Monitors",4,6,4,25,24,null,63]
["IFPs",50,38,35,62,68,null,253]
["Projectors",0,0,0,9,7,null,16]
[]
["Notes:"]
["1. Demolition is to include all coax backbone, coax to classroom, and voice drops as well."]
["2. North Farmington High School has a computer lab with several floor boxes with cabling to be demolished. These counts are not included above."]
["3. The Farmington High School rack is not to be fully demolished, just everything but PA-related equipment."]
["4. Relocated IDLs & associated cabling counts are estimations."]
["5. North Farmington High School does not include relocating any drops for the new IDF in B130."]

{"sheet":"Vendor Questionnaire","index":9,"n_rows":81,"n_cols":2,"rows_kept":81,"cut":false,"hidden":false,"merged":[[0,0,0,1],[77,0,77,1]]}
[{"$f":"MID(CELL(\"filename\",A1),FIND(\"]\",CELL(\"filename\",A1))+1,256)","v":"Vendor Questionnaire"}]
["General"]
["Company name"]
["Company address"]
["Contact name"]
["Email"]
["Services provided by your firm:"]
["Primary"]
["Secondary"]
["Business structure (corporation, partnership, sole proprietor, other)"]
["Number of years in business as the company named above:"]
["Geographical area of operations for your firm:"]
["Work force:"]
["Administrative"]
["Field"]
["Other"]
["Total"]
["Companies largest single contract:"]
["Identify other large projects you are working on this summer (indicate quantity of buildings/drops, type of work)"]
["Identify other large projects you are bidding on this summer (indicate quantity of buildings/drops, type of work)"]
["Annual gross revenue for last three (3) years:"]
[2024]
[2023]
[2022]
["Bonding limits"]
["Single project"]
["Aggregate project"]
["Contact who can verify limits"]
["Insurance limits (attach a certificate as well)"]
["Bonding company for performance bond"]
["Include letter from performance bond company"]
["References"]
["Cabling"]
["Reference 1"]
["Organization name"]
["Contact name"]
["Contact phone"]
["Contact email"]
["Project description"]
["Dates"]
["Reference 2"]
["Organization name"]
["Contact name"]
["Contact phone"]
["Contact email"]
["Project description"]
["Dates"]
["Reference 3"]
["Organization name"]
["Contact name"]
["Contact phone"]
["Contact email"]
["Project description"]
["Dates"]
["Subcontractors"]
["Do you intend to use subcontractors for this project?"]
["If yes, indicate subcontractor name"]
["If yes, indicate what role they will play"]
["If yes, provide 3 references where you have worked with them on similar projects:"]
["Personnel"]
["# of crews"]
["# of staff per crew"]
["Composition of crew"]
["Average experience of crew"]
["Solution"]
["Please indicate any assumptions you made in your proposal."]
["Are you comfortable with the outlined implementation schedule and the work hours?"]
["Please confirm a tentative implementation schedule is provided, including identifying expected workforce (number of crews and number of staff in each crew). Please provide any assumptions made when developing the schedule."]
["Please confirm that you have included all required solution components for the quantities listed in this appendix and on the prints, and if your proposal does not include enough you will include these at no additional charge."]
["Please state the cabling manufacturer and model."]
["Do all proposed cabling systems include a certified 15-year performance guarantee?"]
["State specifically what organizations are responsible for the certified 15-year warranty."]
["Please include a copy of the performance guarantee with your proposal."]
["Please confirm all proposed materials are new/current-production"]
["Please confirm that all employees that will be working onsite on the project have attended asbestos training."]
["In light of the recent federal ban on technologies/ telecommunications equipment from various Chinese manufacturers, please confirm that your proposal contains no components from a prohibited manufacturer and is compliant with federal law."]
["Extended Unit Prices"]
["EXTENDED UNIT PRICES as defined above to any requesting Oakland County school district for the terms and period defined. Indicate below acceptance of these terms, acceptance with modifications as indicated or exception taken. The terms defined for EXTENDED UNIT PRICING can be utilized by any requesting Oakland County school district for the time period specified. ( Check ONE line below)."]
["Are you comfortable with the outlined EXTENDED UNIT PRICING as defined above to any requesting Oakland County school district for the terms and period defined "]
["EXTENDED UNIT PRICING cannot be utilized by any District other than the District holding this contract."]
["EXTENDED UNIT PRICING can be utilized by any requesting Oakland County school district with the following modifications:","Add modifications here if checking this option"]

{"sheet":"Cost","index":10,"n_rows":77,"n_cols":3,"rows_kept":77,"cut":false,"hidden":false,"merged":[[0,0,0,1],[20,0,20,1]]}
["Cost"]
["Base Bid ",null,"Total"]
["East Middle School"]
["Power Middle School"]
["Warner Middle School"]
["Farmington High School"]
["North Farmington High School"]
["Total Base Bid:"]
["Performance bond (not included in base bid total):"]
["Performance bond % (to be used to adjust for any alternates/options selected):"]
["Add / Alternates",null,"Total cost"]
["A/A 1: Total cost to upgrade to Cat 6A cabling (including new cabling and cabling demo for wireless, video surveillance & AV)"]
["East Middle School"]
["Power Middle School"]
["Warner Middle School"]
["Farmington High School"]
["North Farmington High School"]
["Total Add/Alternate:"]
["Performance bond (not included in A/A total):"]
["Performance bond % (to be used to adjust for any alternates/options selected):"]
["Unit pricing - Maximum potential annual price increase\n(if needed due to product price increases; vendor must provide documentation showing product price increase)",null,"Max %\nIncrease"]
["2026 (expect this to be at base unit costs listed below)"]
[2027]
[2028]
[2029]
["<add rows as needed>"]
["Unit costs (add/deduct cost must be the same)","Unit cost - \nCat 6","Unit cost - \nCat 6A"]
["Structured cabling"]
["V2000 raceway (ceiling to 16\" AFF with install)"]
["V4000 raceway (ceiling to 16\" AFF with install)"]
["Data cables - 1 per location"]
["Data cables - 2 at same location"]
["Data cables - 3 at same location"]
["Data cables - 4 at same location"]
["Data cables - 5 at same location"]
["Data cables - 6 at same location"]
["Move 1 data cable"]
["Move 2 data cables at same location"]
["Move 3 data cables at same location"]
["Remove / pull back to new closet and reterminate 1 data cable"]
["Remove / pull back to new closet and reterminate 2 data cables at same location"]
["Remove / pull back to new closet and reterminate 3 data cables at same location"]
["Remove / reinstall 1 data cable"]
["Remove / reinstall 2 data cables at same location"]
["Remove / reinstall 3 data cables at same location"]
["24-port patch panel"]
["48-port patch panel"]
["Patch cord"]
["Backbone cabling  (300')"]
["Backbone cabling (addl. 50')"]
["Unit cost for coring / sleeving / firestopping"]
["1 foot cable tray"]
["3 feet cable tray"]
["6 feet cable tray"]
["Network closet components"]
["Rack-mounted power distribution unit (L5-30P input, w/ install)"]
["Rack-mounted power distribution unit (5-20P input, w/ install)"]
["Floor-mounted cabinet (w/ installation & removal of existing)"]
["Two-post open rack (w/ installation & removal of existing)"]
["Floor-mounted wall cabinet (w/ installation & removal of existing)"]
["Wall-mounted half cabinet (w/ installation & removal of existing)"]
["Removal, demolition, reinstallation"]
["Cabling demo - hourly rate"]
["Remove 1 AV location at the top of teacher raceway & cover with blank faceplate"]
["IDF demolition"]
["MDF demolition"]
["Additional Labor Rates"]
["Hourly service rates for system-certified technicians:"]
["Normal:"]
["After hours:"]
["Sunday / holiday:"]
["Is there a trip charge?\nIf so, what is the trip charge?"]
["If no trip charge, is travel time charged?\nIf so, explain:"]
["Other"]
["<insert description>"]
["<insert description>"]
["<add rows as needed>"]